bitfinex/quotes_SOLUSD_20250616
["timestamp","ask_amount","ask_price","bid_price","bid_amount"]
[1750103572549,14.51219359,157.71,157.67,29.77904381]
[1750103573654,12.98239359,157.71,157.69,7.58078163]
[1750103574858,12.98239359,157.71,157.68,7.58078163]
[1750103575245,12.98239359,157.71,157.69,6.34155621]
[1750103576964,12.98239359,157.71,157.68,6.34195839]
[1750103577260,15.33042874,157.71,157.68,13.92274002]
[1750103577448,12.98239359,157.71,157.68,13.92274002]
[1750103577646,7.04322055,157.7,157.68,6.34195839]
[1750103577834,4.69548007,157.69,157.68,6.34195839]
[1750103578040,4.69710421,157.69,157.68,6.34195839]
[1750103578465,15.331074,157.71,157.68,6.34195839]
[1750103578757,4.69731258,157.7,157.68,13.92274002]
[1750103578963,12.98239359,157.71,157.68,29.77763601]
[1750103579150,12.98239359,157.71,157.69,7.58078163]
[1750103579834,12.98239359,157.71,157.7,7.58078163]
[1750103581249,12.98239359,157.71,157.7,13.92193572]
[1750103582460,12.98239359,157.71,157.7,6.34115409]
[1750103582660,17.67852513,157.71,157.69,6.34138616]
[1750103582980,4.69634892,157.7,157.69,6.34138616]
[1750103583284,10.55894244,157.7,157.69,6.34138616]
[1750103583455,5.86259352,157.7,157.69,6.34138616]
[1750103583641,4.69678179,157.7,157.69,6.34138616]
[1750103584457,4.69592754,157.7,157.69,13.92216779]
[1750103585554,4.69592754,157.7,157.69,96.02216779]
[1750103585865,4.69592754,157.7,157.69,88.44138616]
[1750103587358,4.69664475,157.7,157.69,88.44138616]
[1750103588081,7.0448483,157.7,157.69,88.44138616]
[1750103589058,14.62562993,157.7,157.69,82.1]
[1750103589251,16.24232993,157.7,157.67,6.34222849]
[1750103589598,14.62562993,157.69,157.67,6.34222849]
[1750103589753,14.62562993,157.68,157.64,6.34356762]
[1750103589959,4.69664475,157.67,157.64,6.34356762]
[1750103590274,4.69727842,157.66,157.64,6.34356762]
[1750103590478,7.58078163,157.68,157.64,6.34356762]
[1750103590662,7.04575907,157.67,157.64,6.34356762]
[1750103590986,4.69717418,157.66,157.64,6.34356762]
[1750103591190,2.34858489,157.67,157.64,6.34356762]
[1750103591486,4.69709312,157.66,157.64,6.34356762]
[1750103591785,9.92936652,157.67,157.64,6.34356762]
[1750103591987,4.69687495,157.66,157.64,6.34356762]
[1750103592287,9.92936652,157.67,157.64,6.34356762]
[1750103592575,4.69689399,157.66,157.64,6.34356762]
[1750103592763,9.92922829,157.67,157.64,6.34356762]
[1750103592963,4.69722149,157.66,157.64,6.34356762]
[1750103593162,9.92922829,157.67,157.64,6.34356762]
[1750103593363,4.697198,157.66,157.64,6.34356762]
[1750103593569,7.58078163,157.67,157.64,6.34356762]
[1750103593570,9.92922829,157.67,157.64,6.34356762]
[1750103593771,4.69737049,157.66,157.64,6.34356762]
[1750103593975,9.92922829,157.67,157.64,6.34356762]
[1750103594169,4.69704818,157.66,157.64,6.34356762]
[1750103594371,9.92922829,157.67,157.64,88.44356762]
[1750103594574,4.69736982,157.66,157.64,88.44356762]
[1750103594773,2.34844666,157.67,157.64,88.44356762]
[1750103595082,9.92922829,157.68,157.64,88.44356762]
[1750103595390,4.69694484,157.67,157.64,88.44356762]
[1750103595573,9.92922829,157.68,157.64,88.44356762]
[1750103595775,4.69610444,157.67,157.64,88.44356762]
[1750103595962,9.92884336,157.68,157.64,88.44356762]
[1750103596157,4.69676028,157.67,157.64,88.44356762]
[1750103596358,9.21948163,157.65,157.6,6.34517766]
[1750103596575,7.58078163,157.63,157.6,6.34517766]
[1750103599211,2.34796327,157.64,157.6,13.92595929]
[1750103599495,4.69141248,157.63,157.6,13.92595929]
[1750103599792,7.58078163,157.64,157.6,13.92595929]
[1750103599982,4.69130423,157.63,157.6,13.92595929]
[1750103600170,7.58078163,157.64,157.6,13.92595929]
[1750103600367,7.58078163,157.64,157.6,6.34517766]
[1750103600798,7.58078163,157.63,157.6,6.34517766]
[1750103600976,12.27239303,157.62,157.6,6.34517766]
[1750103601298,7.58078163,157.61,157.59,27.36745369]
[1750103601480,7.58078163,157.61,157.59,109.46745369]
[1750103601667,4.69067377,157.62,157.59,109.46745369]
[1750103601876,7.58078163,157.61,157.59,109.46745369]
[1750103602297,7.58078163,157.6,157.59,109.46745369]
[1750103602594,34.68897451,157.64,157.59,88.44549213]
[1750103602896,7.58078163,157.6,157.57,6.34638573]
[1750103603197,7.58078163,157.61,157.57,6.34638573]
[1750103606186,12.26634191,157.62,157.57,13.92716736]
[1750103606489,7.58078163,157.62,157.57,13.92716736]
[1750103608000,7.58078163,157.61,157.57,6.34638573]
[1750103608182,4.68089422,157.63,157.57,6.34638573]
[1750103608503,7.58078163,157.62,157.57,13.92716736]
[1750103609203,7.58078163,157.62,157.57,96.02716736]
[1750103610113,4.68089422,157.63,157.59,7.58078163]
[1750103610287,33.58078163,157.64,157.59,7.58078163]
[1750103611882,7.58078163,157.63,157.58,7.58078163]
[1750103612995,7.58078163,157.63,157.59,6.3455803]
[1750103615108,7.58078163,157.63,157.59,88.4455803]
[1750103616392,33.58078163,157.64,157.6,7.58078163]
[1750103616582,1.6387,157.65,157.61,7.58078163]
[1750103616908,1.6387,157.65,157.62,7.58078163]
[1750103617109,12.24459207,157.68,157.63,7.58078163]
[1750103617282,7.58078163,157.68,157.63,7.58078163]
[1750103617478,13.90219207,157.69,157.64,7.58078163]
[1750103617889,7.58078163,157.68,157.62,82.1]
[1750103618097,7.58078163,157.68,157.63,7.58078163]
[1750103618788,7.58078163,157.68,157.64,6.34356762]
[1750103620291,7.58078163,157.65,157.63,6.34389038]
[1750103620498,0.14216157,157.68,157.6,6.34517766]
[1750103620499,7.58078163,157.64,157.6,6.34517766]
[1750103621112,7.13310486,157.68,157.6,13.92595929]
[1750103621307,7.58078163,157.65,157.6,13.92595929]
[1750103621612,7.58078163,157.64,157.6,6.34517766]
[1750103622182,7.58078163,157.64,157.6,13.92595929]
[1750103622609,7.58078163,157.64,157.6,6.34517766]
[1750103622813,18.79181043,157.66,157.6,13.92595929]
[1750103623010,7.58078163,157.64,157.6,13.92595929]
[1750103623204,7.58078163,157.64,157.6,6.34517766]
[1750103623421,7.58078163,157.64,157.6,13.92595929]
[1750103623724,7.58078163,157.65,157.6,13.92595929]
[1750103624109,7.58078163,157.65,157.6,96.02595929]
[1750103624317,7.58078163,157.64,157.6,96.02595929]
[1750103624623,7.58078163,157.65,157.6,111.88890345]
[1750103625808,7.58078163,157.65,157.61,7.58078163]
[1750103626016,7.58078163,157.66,157.62,7.58078163]
[1750103626331,7.58078163,157.67,157.62,7.58078163]
[1750103626897,7.58078163,157.63,157.6,88.44517766]
[1750103627128,7.58078163,157.62,157.6,6.34517766]
[1750103627806,7.58078163,157.61,157.58,6.34598299]
[1750103628920,7.58078163,157.61,157.57,22.21154648]
[1750103629218,7.58078163,157.61,157.57,29.79232811]
[1750103629805,7.58078163,157.61,157.57,6.34638573]
[1750103630833,4.65909851,157.6,157.57,13.92716736]
[1750103631034,4.65909851,157.59,157.56,6.34678852]
[1750103631214,7.58078163,157.61,157.57,7.58078163]
[1750103631407,4.67134296,157.6,157.57,7.58078163]
[1750103631612,4.67134296,157.59,157.57,7.58078163]
[1750103631812,7.58078163,157.61,157.57,7.58078163]
[1750103632132,4.67137385,157.6,157.57,7.58078163]
[1750103632338,7.58078163,157.61,157.58,6.34598299]
[1750103632512,4.66951029,157.6,157.58,6.34598299]
[1750103632704,4.66951029,157.59,157.58,6.34598299]
[1750103635332,1.5831,157.63,157.58,13.92676462]
[1750103635633,38.25453936,157.62,157.58,13.92676462]
[1750103635807,4.67375773,157.61,157.59,7.58078163]
[1750103636013,7.58078163,157.64,157.6,7.58078163]
[1750103636312,4.6742102,157.63,157.61,7.58078163]
[1750103636508,4.67355085,157.62,157.61,7.58078163]
[1750103636916,1.6558,157.67,157.61,7.58078163]
[1750103636917,9.23658163,157.67,157.61,7.58078163]
[1750103637211,14.59313172,157.66,157.62,7.58078163]
[1750103637518,4.6749026,157.65,157.62,7.58078163]
[1750103637706,4.6749026,157.64,157.62,7.58078163]
[1750103637903,4.6749026,157.63,157.62,13.92515417]
[1750103638141,4.6749026,157.63,157.62,6.34437254]
[1750103642335,4.6749026,157.63,157.61,6.34477507]
[1750103642535,2.33795373,157.64,157.61,6.34477507]
[1750103642721,4.6800555,157.63,157.61,6.34477507]
[1750103642922,4.6800555,157.62,157.61,6.34477507]
[1750103645332,4.6800555,157.62,157.61,6.72567507]
[1750103647245,4.6800555,157.62,157.61,14.3064567]
[1750103647628,4.6800555,157.62,157.61,6.72567507]
[1750103647837,4.6800555,157.62,157.61,14.3064567]
[1750103648341,4.68156138,157.62,157.61,14.3064567]
[1750103650234,2.34109491,157.66,157.61,30.16839439]
[1750103650435,18.87319873,157.7,157.65,7.58078163]
[1750103650641,7.02376111,157.69,157.66,7.58078163]
[1750103650826,4.68249401,157.68,157.65,7.58078163]
[1750103651146,4.68249401,157.67,157.62,108.14]
[1750103651346,4.68249401,157.66,157.63,7.58078163]
[1750103651565,4.68249401,157.65,157.63,7.58078163]
[1750103651726,4.67986083,157.64,157.63,7.58078163]
[1750103652052,4.67986083,157.66,157.63,7.58078163]
[1750103652249,7.58078163,157.67,157.64,6.34356762]
[1750103652840,2.34021503,157.69,157.64,6.34356762]
[1750103653019,14.60172035,157.68,157.64,6.34356762]
[1750103653225,4.68072369,157.67,157.64,13.92434925]
[1750103653456,9.92099666,157.69,157.65,7.58078163]
[1750103653631,4.68328084,157.68,157.65,7.58078163]
[1750103653827,26.45398036,157.7,157.65,7.58078163]
[1750103654156,7.02498178,157.69,157.65,7.58078163]
[1750103654333,4.68332119,157.68,157.66,6.3427629]
[1750103654541,2.34166059,157.69,157.66,6.3427629]
[1750103654755,4.68429328,157.68,157.66,6.3427629]
[1750103654922,4.68241833,157.68,157.66,6.3427629]
[1750103655837,7.58078163,157.69,157.66,6.3427629]
[1750103656191,18.87319873,157.7,157.68,7.58078163]
[1750103656327,18.87319873,157.7,157.69,7.58078163]
[1750103656526,18.87319873,157.7,157.66,22.19967016]
[1750103656730,18.87319873,157.7,157.68,7.58078163]
[1750103657857,18.87319873,157.7,157.66,22.19967016]
[1750103658043,18.87319873,157.7,157.68,7.58078163]
[1750103658244,18.87319873,157.7,157.69,6.34155621]
[1750103658741,18.87319873,157.7,157.69,13.92233784]
[1750103658950,18.87319873,157.7,157.69,6.34155621]
[1750103661758,18.87319873,157.7,157.69,13.92233784]
[1750103662059,18.87319873,157.7,157.69,6.34155621]
[1750103662272,18.87319873,157.7,157.69,13.92233784]
[1750103663560,18.87319873,157.7,157.69,96.02233784]
[1750103664944,18.87319873,157.7,157.69,88.44155621]
[1750103665157,18.87319873,157.7,157.69,82.1]
[1750103665332,26.45398036,157.7,157.65,6.34316523]
[1750103665536,7.58078163,157.68,157.65,6.34316523]
[1750103666348,9.13748163,157.69,157.65,6.34316523]
[1750103666552,1.5567,157.69,157.65,6.34316523]
[1750103666748,9.13748163,157.69,157.65,13.92394686]
[1750103667769,9.13748163,157.69,157.65,6.34316523]
[1750103669865,7.58078163,157.68,157.65,6.34316523]
[1750103670182,7.58078163,157.66,157.65,6.34316523]
[1750103670385,18.87319873,157.7,157.65,7.58078163]
[1750103670545,18.87319873,157.7,157.69,7.58078163]
[1750103671251,18.87319873,157.7,157.68,7.58078163]
[1750103671455,18.87319873,157.7,157.65,108.12]
[1750103671650,18.87319873,157.7,157.68,7.58078163]
[1750103672368,18.87319873,157.7,157.69,6.34155621]
[1750103673575,18.87319873,157.7,157.69,13.92233784]
[1750103674385,18.87319873,157.7,157.69,96.02233784]
[1750103677189,18.87319873,157.7,157.69,96.40323784]
[1750103677545,18.87319873,157.7,157.69,14.30323784]
[1750103680352,18.87319873,157.7,157.69,96.40323784]
[1750103680756,7.7997,157.81,157.72,26.0]
[1750103680970,7.58078163,157.78,157.72,108.16]
[1750103681281,7.58078163,157.78,157.73,7.58078163]
[1750103681570,7.58078163,157.77,157.74,6.33954608]
[1750103683873,7.58078163,157.76,157.74,6.33954608]
[1750103685882,7.58078163,157.77,157.73,13.92072964]
[1750103687082,7.58078163,157.74,157.71,6.34065059]
[1750103687258,7.58078163,157.72,157.7,6.34102618]
[1750103687990,7.58078163,157.73,157.7,6.34102618]
[1750103688792,18.64964886,157.74,157.7,6.34102618]
[1750103689097,7.58078163,157.73,157.7,6.34102618]
[1750103689249,1.5585,157.75,157.7,6.34102618]
[1750103689450,1.5585,157.75,157.71,7.58078163]
[1750103689655,1.5585,157.75,157.72,6.34034998]
[1750103690370,7.58078163,157.73,157.7,6.34107527]
[1750103690691,7.58078163,157.72,157.7,6.34107527]
[1750103691985,10.23287673,157.75,157.68,7.58078163]
[1750103691986,18.79181043,157.74,157.69,6.34155621]
[1750103692198,7.58078163,157.73,157.69,6.34155621]
[1750103693285,7.58078163,157.72,157.69,6.34155621]
[1750103693598,7.58078163,157.74,157.69,29.77622838]
[1750103693820,11.47998315,157.75,157.7,7.58078163]
[1750103694108,11.47998315,157.75,157.71,7.58078163]
[1750103694275,11.47998315,157.75,157.7,7.58078163]
[1750103694476,9.13928163,157.75,157.7,7.58078163]
[1750103695077,11.47970661,157.75,157.71,6.34075201]
[1750103697088,9.13928163,157.75,157.71,6.34075201]
[1750103697597,11.4810252,157.75,157.71,6.34075201]
[1750103698104,11.4810252,157.75,157.71,88.44075201]
[1750103699009,11.4802561,157.75,157.71,88.44075201]
[1750103700292,1.5893,157.79,157.74,7.58078163]
[1750103700589,1.5893,157.84,157.78,7.58078163]
[1750103700784,1.5893,157.84,157.8,7.58078163]
[1750103700981,1.5893,157.84,157.81,7.58078163]
[1750103701176,19.99260673,157.86,157.83,7.58078163]
[1750103701376,5.83800755,157.9,157.82,18.64964886]
[1750103701377,4.68485252,157.89,157.82,18.64964886]
[1750103701579,7.58078163,157.88,157.83,7.58078163]
[1750103701800,7.58078163,157.88,157.84,7.58078163]
[1750103702198,7.58078163,157.89,157.84,7.58078163]
[1750103702393,7.0247076,157.91,157.85,13.91590991]
[1750103702604,9.92063671,157.91,157.86,7.58078163]
[1750103702782,7.58078163,157.91,157.86,7.58078163]
[1750103703491,7.58078163,157.9,157.86,7.58078163]
[1750103704415,7.58078163,157.9,157.85,7.58078163]
[1750103705128,7.58078163,157.87,157.83,7.58078163]
[1750103705296,7.58078163,157.88,157.83,7.58078163]
[1750103706118,7.58078163,157.88,157.84,13.91599024]
[1750103706296,9.17828163,157.92,157.87,7.58078163]
[1750103706619,7.58078163,157.91,157.87,7.58078163]
[1750103707118,7.58078163,157.91,157.86,7.58078163]
[1750103707320,7.58078163,157.9,157.86,7.58078163]
[1750103707816,7.58078163,157.87,157.84,6.33520861]
[1750103708191,7.58078163,157.88,157.84,6.33520861]
[1750103709912,7.58078163,157.88,157.84,13.91599024]
[1750103710124,26.37259206,157.9,157.86,7.58078163]
[1750103711117,7.58078163,157.9,157.86,7.58078163]
[1750103711302,7.58078163,157.9,157.86,6.33448939]
[1750103711616,7.58078163,157.9,157.86,13.91527102]
[1750103711804,7.58078163,157.9,157.86,6.33448939]
[1750103712006,7.58078163,157.89,157.86,6.33448939]
[1750103712205,7.58078163,157.89,157.84,7.58078163]
[1750103712414,7.58078163,157.86,157.83,0.3809]
[1750103712616,18.79181043,157.9,157.83,0.3809]
[1750103712617,7.58078163,157.85,157.83,0.3809]
[1750103712818,18.79181043,157.9,157.83,0.3809]
[1750103712999,7.58078163,157.85,157.83,0.3809]
[1750103713195,7.58078163,157.85,157.83,6.71669476]
[1750103713429,7.58078163,157.86,157.83,6.71669476]
[1750103713903,18.79181043,157.88,157.83,6.71669476]
[1750103714109,7.58078163,157.86,157.83,6.71669476]
[1750103716224,44.79181043,157.88,157.83,6.71669476]
[1750103716422,7.58078163,157.87,157.83,6.71669476]
[1750103716902,6.33318948,157.9,157.83,14.29747639]
[1750103717221,7.58078163,157.87,157.83,96.39747639]
[1750103719923,7.58078163,157.86,157.83,88.81669476]
[1750103720101,7.58078163,157.85,157.83,6.71669476]
[1750103720303,7.58078163,157.85,157.83,0.3809]
[1750103721429,7.58078163,157.89,157.84,7.58078163]
[1750103721637,7.58078163,157.89,157.85,7.58078163]
[1750103722015,7.58078163,157.89,157.83,22.55644329]
[1750103722229,7.58078163,157.89,157.84,7.58078163]
[1750103722516,7.58078163,157.88,157.84,7.58078163]
[1750103723637,7.58078163,157.87,157.83,29.75632492]
[1750103723925,7.58078163,157.85,157.81,22.17856915]
[1750103724116,7.58078163,157.85,157.81,29.75935078]
[1750103725135,7.58078163,157.85,157.81,6.33673404]
[1750103725813,7.58078163,157.84,157.81,6.33673404]
[1750103726225,7.58078163,157.84,157.81,6.71763404]
[1750103726622,0.14216157,157.87,157.81,6.71763404]
[1750103727133,7.58078163,157.85,157.81,22.55946915]
[1750103727336,0.14216157,157.87,157.81,30.14025078]
[1750103727337,7.58078163,157.86,157.81,30.14025078]
[1750103727512,7.58078163,157.86,157.81,112.24025078]
[1750103727714,7.58078163,157.85,157.81,112.24025078]
[1750103728513,7.58078163,157.85,157.81,104.65946915]
[1750103728729,7.58078163,157.85,157.81,88.81763404]
[1750103728939,7.58078163,157.82,157.81,0.3809]
[1750103730003,26.37259206,157.82,157.81,0.3809]
[1750103730746,58.70892459,157.82,157.81,0.3809]
[1750103731035,44.79181043,157.78,157.71,5.68]
[1750103731361,44.79181043,157.78,157.69,13.92233784]
[1750103731362,7.58078163,157.74,157.69,13.92233784]
[1750103731736,7.58078163,157.74,157.7,15.85288522]
[1750103731942,7.58078163,157.73,157.7,15.85288522]
[1750103732430,7.58078163,157.76,157.71,7.58078163]
[1750103732635,7.58078163,157.75,157.72,6.34034998]
[1750103732843,11.40092706,157.75,157.72,6.34034998]
[1750103733336,11.40092706,157.76,157.72,33.592152]
[1750103733631,11.40092706,157.77,157.72,33.592152]
[1750103734016,11.40092706,157.77,157.73,11.40092706]
[1750103734737,11.40092706,157.77,157.72,27.25180202]
[1750103734936,26.0,157.8,157.72,27.25180202]
[1750103735113,26.0,157.8,157.73,11.40092706]
[1750103735114,11.40092706,157.78,157.73,11.40092706]
[1750103735713,11.40092706,157.77,157.72,27.25180202]
[1750103736131,11.40092706,157.77,157.72,109.35180202]
[1750103736321,11.40092706,157.81,157.76,11.40092706]
[1750103736839,11.40092706,157.81,157.77,6.33834062]
[1750103737330,11.40092706,157.82,157.77,33.58511923]
[1750103739234,89.24748469,157.84,157.77,6.33834062]
[1750103739415,11.40092706,157.78,157.77,6.33834062]
[1750103740325,11.40092706,157.78,157.75,6.33914421]
[1750103741237,26.0,157.81,157.76,11.40092706]
[1750103741442,26.0,157.81,157.77,11.40092706]
[1750103741625,11.40092706,157.82,157.78,11.40092706]
[1750103741826,11.40092706,157.82,157.77,11.40092706]
[1750103742433,11.40092706,157.81,157.77,11.40092706]
[1750103743530,11.40092706,157.81,157.78,6.3379389]
[1750103745548,37.00522538,157.84,157.77,109.34676708]
[1750103745549,11.40092706,157.79,157.77,88.43823784]
[1750103748536,0.14216157,157.81,157.77,88.43823784]
[1750103748748,11.40092706,157.8,157.77,88.43823784]
[1750103749148,26.14216157,157.83,157.77,99.8391649]
[1750103749441,11.40092706,157.82,157.77,115.68501645]
[1750103749642,11.40092706,157.81,157.77,115.68501645]
[1750103749850,11.40092706,157.81,157.77,104.28408939]
[1750103750341,26.14216157,157.83,157.77,104.28408939]
[1750103750342,11.40092706,157.82,157.77,115.68501645]
[1750103750851,11.40092706,157.78,157.77,82.1]
[1750103751149,11.40092706,157.78,157.76,6.33851545]
[1750103751445,11.40092706,157.81,157.76,33.58629849]
[1750103751823,37.40092706,157.82,157.76,33.58629849]
[1750103752257,37.40092706,157.82,157.77,11.40092706]
[1750103752826,33.593604,157.82,157.77,7.593604]
[1750103753752,33.593604,157.82,157.78,6.3379389]
[1750103754951,33.593604,157.82,157.77,6.33834062]
[1750103755360,33.593604,157.82,157.77,13.93194462]
[1750103757162,33.593604,157.82,157.77,96.03194462]
[1750103757653,33.593604,157.82,157.77,111.87779617]
[1750103757955,30.6817819,157.84,157.77,111.87779617]
[1750103758140,7.593604,157.85,157.8,7.593604]
[1750103758344,28.58634452,157.85,157.8,7.593604]
[1750103758550,2.34309166,157.84,157.8,7.593604]
[1750103758960,2.34402382,157.84,157.8,7.593604]
[1750103759759,2.34402382,157.84,157.81,6.33673404]
[1750103759954,14.62368167,157.85,157.81,6.33673404]
[1750103760366,9.93762782,157.85,157.81,6.33673404]
[1750103761397,7.593604,157.84,157.79,23.43724689]
[1750103762934,7.593604,157.8,157.78,6.3379389]
[1750103763135,9.9412906,157.82,157.78,6.3379389]
[1750103763358,7.593604,157.82,157.78,6.3379389]
[1750103763542,26.38541443,157.83,157.78,13.9315429]
[1750103763746,26.24325286,157.84,157.79,7.593604]
[1750103764150,7.593604,157.83,157.78,29.77639015]
[1750103766273,7.593604,157.83,157.79,7.593604]
[1750103767453,7.593604,157.83,157.8,6.33713561]
[1750103767670,9.94128668,157.83,157.8,6.33713561]
[1750103767867,7.593604,157.83,157.8,6.33713561]
[1750103768069,9.94128668,157.83,157.8,6.33713561]
[1750103768365,7.593604,157.83,157.8,6.33713561]
[1750103768547,9.94128668,157.83,157.8,6.33713561]
[1750103768746,7.593604,157.82,157.8,6.33713561]
[1750103769672,7.593604,157.82,157.78,105.53845125]
[1750103769673,7.593604,157.82,157.79,6.33753723]
[1750103770190,2.34910933,157.84,157.79,13.93114123]
[1750103770358,2.34910933,157.84,157.81,7.593604]
[1750103770683,4.68605385,157.85,157.82,7.593604]
[1750103770684,2.34910933,157.85,157.82,7.593604]
[1750103771476,2.34910933,157.85,157.83,6.33593106]
[1750103772583,2.35000484,157.85,157.83,6.33593106]
[1750103773072,2.35031808,157.85,157.83,6.33593106]
[1750103773280,9.94392208,157.85,157.83,6.33593106]
[1750103773660,9.94392208,157.84,157.8,6.33713561]
[1750103773853,2.35031808,157.83,157.8,6.33713561]
[1750103774176,7.593604,157.83,157.8,6.33713561]
[1750103774482,9.94392208,157.83,157.79,88.43739686]
[1750103774780,9.94392208,157.83,157.77,6.33834062]
[1750103774781,7.593604,157.8,157.77,6.33834062]
[1750103775075,7.593604,157.8,157.76,6.33874239]
[1750103775574,9.94392208,157.81,157.76,13.93234639]
[1750103775774,7.593604,157.81,157.76,13.93234639]
[1750103776078,9.94392208,157.81,157.76,13.93234639]
[1750103776283,7.593604,157.81,157.76,13.93234639]
[1750103776461,9.94392208,157.81,157.76,29.77920237]
[1750103776664,9.94724898,157.8,157.76,22.18559837]
[1750103776860,7.593604,157.78,157.76,6.33874239]
[1750103777470,7.593604,157.79,157.76,6.33874239]
[1750103777785,4.70642307,157.78,157.76,6.33874239]
[1750103777986,9.94682261,157.79,157.76,6.33874239]
[1750103778182,4.70637393,157.78,157.76,6.33874239]
[1750103778485,9.94682261,157.79,157.76,6.33874239]
[1750103778671,4.70623141,157.78,157.76,6.33874239]
[1750103778873,9.94682261,157.79,157.76,6.33874239]
[1750103779053,4.70604816,157.78,157.76,6.33874239]
[1750103779389,9.94682261,157.79,157.76,6.33874239]
[1750103779578,4.70604749,157.78,157.76,6.33874239]
[1750103779762,9.94682261,157.79,157.76,6.33874239]
[1750103779963,4.70549079,157.78,157.76,6.33874239]
[1750103780168,4.68605385,157.81,157.76,6.33874239]
[1750103780370,7.05842156,157.8,157.79,7.593604]
[1750103780560,4.70549691,157.8,157.79,7.593604]
[1750103780761,4.70549691,157.8,157.79,82.1]
[1750103781565,4.68605385,157.82,157.8,6.33713561]
[1750103781884,7.06248507,157.81,157.8,6.33713561]
[1750103782885,7.06577692,157.81,157.8,6.33713561]
[1750103784561,14.65938092,157.81,157.79,82.1]
[1750103784761,14.65938092,157.8,157.79,82.1]
[1750103785185,19.36744449,157.8,157.77,6.33826765]
[1750103785390,7.593604,157.78,157.71,6.34075201]
[1750103785573,13.58240206,157.79,157.71,22.19263204]
[1750103785574,7.593604,157.74,157.71,22.19263204]
[1750103785890,7.593604,157.75,157.71,22.19263204]
[1750103787175,7.593604,157.74,157.71,6.34075201]
[1750103788561,7.593604,157.74,157.7,6.34115409]
[1750103789588,7.593604,157.74,157.7,13.93475809]
[1750103790880,4.69446769,157.75,157.7,13.93475809]
[1750103791082,7.593604,157.74,157.7,13.93475809]
[1750103791419,7.593604,157.74,157.7,6.34115409]
[1750103792694,7.593604,157.74,157.7,96.03475809]
[1750103792868,7.593604,157.74,157.7,88.44115409]
[1750103793682,7.593604,157.74,157.7,104.29403931]
[1750103795591,4.6922298,157.77,157.7,104.29403931]
[1750103795897,7.593604,157.76,157.71,7.593604]
[1750103796103,21.68947492,157.79,157.71,7.593604]
[1750103796104,7.03492173,157.78,157.71,7.593604]
[1750103796275,12.28355182,157.77,157.72,7.593604]
[1750103796478,7.593604,157.76,157.72,7.593604]
[1750103796801,7.593604,157.74,157.71,82.1]
[1750103796977,7.593604,157.74,157.72,6.34034998]
[1750103805795,7.593604,157.73,157.71,88.440594]
[1750103806589,7.593604,157.72,157.71,88.440594]
[1750103806778,15.32288331,157.76,157.71,88.440594]
[1750103806979,7.593604,157.73,157.71,88.440594]
[1750103807384,7.593604,157.73,157.71,6.340594]
[1750103807783,7.593604,157.72,157.71,6.340594]
[1750103808876,7.593604,157.73,157.68,131.54846275]
[1750103809083,7.593604,157.73,157.69,6.34155621]
[1750103813401,7.593604,157.73,157.69,88.44155621]
[1750103813709,7.593604,157.73,157.69,96.03516021]
[1750103814614,7.593604,157.74,157.69,96.03516021]
[1750103815283,7.593604,157.74,157.69,88.44155621]
[1750103815486,7.593604,157.73,157.69,88.44155621]
[1750103815882,7.593604,157.73,157.69,104.29544675]
[1750103817999,7.593604,157.74,157.69,111.88905075]
[1750103819316,7.593604,157.74,157.69,104.29544675]
[1750103819528,7.593604,157.73,157.69,104.29544675]
[1750103820106,7.593604,157.74,157.69,111.88905075]
[1750103820420,14.06815672,157.76,157.69,82.1]
[1750103820421,0.14216157,157.75,157.69,82.1]
[1750103820632,7.593604,157.7,157.65,82.1]
[1750103820794,7.593604,157.66,157.61,6.34477507]
[1750103821125,7.593604,157.62,157.6,6.3451074]
[1750103821308,7.593604,157.61,157.57,6.34638573]
[1750103822226,7.593604,157.6,157.57,6.34638573]
[1750103822524,7.593604,157.59,157.57,6.34638573]
[1750103822689,7.593604,157.58,157.54,6.34759426]
[1750103822893,7.593604,157.56,157.54,6.34759426]
[1750103823096,18.79181043,157.61,157.54,6.34759426]
[1750103823321,7.593604,157.57,157.53,6.3479972]
[1750103823696,7.593604,157.56,157.53,6.3479972]
[1750103823905,7.593604,157.54,157.53,6.3479972]
[1750103824506,11.31631937,157.56,157.53,6.3479972]
[1750103824825,18.90992337,157.56,157.53,6.3479972]
[1750103825001,7.593604,157.55,157.53,6.3479972]
[1750103825403,7.593604,157.55,157.51,22.22034563]
[1750103825817,7.593604,157.54,157.51,22.22034563]
[1750103827310,7.593604,157.53,157.48,22.22504445]
[1750103827507,7.593604,157.53,157.49,7.593604]
[1750103827721,7.593604,157.54,157.49,7.593604]
[1750103827922,7.593604,157.54,157.5,7.593604]
[1750103828335,7.593604,157.54,157.49,7.593604]
[1750103829223,7.593604,157.54,157.48,53.97510795]
[1750103829407,7.593604,157.54,157.5,22.22222221]
[1750103829816,7.593604,157.54,157.5,29.81582621]
[1750103830116,7.593604,157.55,157.5,29.81582621]
[1750103830321,18.90992337,157.56,157.51,7.593604]
[1750103830536,7.593604,157.54,157.5,22.22222221]
[1750103830828,7.593604,157.54,157.5,29.81582621]